bitfinex/quotes_BTCUSD_20241203
["timestamp","ask_amount","ask_price","bid_price","bid_amount"]
[1733226474581,7.54592756,94889.0,94888.0,1.60723445]
[1733226474844,7.52485056,94889.0,94888.0,1.59823445]
[1733226475068,6.97578578,94889.0,94888.0,1.58251399]
[1733226475320,6.91877299,94889.0,94888.0,1.63081399]
[1733226475538,6.91877299,94889.0,94888.0,1.62181399]
[1733226475780,6.81338799,94889.0,94888.0,1.94118411]
[1733226476029,6.81338799,94889.0,94888.0,1.95018411]
[1733226476247,6.81338799,94889.0,94888.0,1.63081399]
[1733226476471,6.81338799,94889.0,94888.0,1.62181399]
[1733226476699,6.77123399,94889.0,94888.0,1.63981399]
[1733226476931,6.70800299,94889.0,94888.0,1.63981399]
[1733226477157,6.70800299,94889.0,94888.0,1.62181399]
[1733226477377,6.70800299,94889.0,94888.0,1.63081399]
[1733226478146,6.68692599,94889.0,94888.0,1.63081399]
[1733226478452,6.66584899,94889.0,94888.0,1.63081399]
[1733226478687,6.62369499,94889.0,94888.0,1.63081399]
[1733226480075,6.43019932,94889.0,94888.0,1.63081399]
[1733226480287,6.41761208,94889.0,94888.0,1.63081399]
[1733226480502,5.86961208,94889.0,94888.0,1.63081399]
[1733226480731,5.82745808,94889.0,94888.0,1.63081399]
[1733226480992,5.76422708,94889.0,94888.0,1.63081399]
[1733226481657,5.74315008,94889.0,94888.0,1.63081399]
[1733226481883,5.65884208,94889.0,94888.0,1.63081399]
[1733226483314,5.63776508,94889.0,94888.0,0.93081399]
[1733226483541,5.57453408,94889.0,94888.0,0.93081399]
[1733226483787,5.49022608,94889.0,94888.0,0.93081399]
[1733226484014,5.44807208,94889.0,94888.0,0.93081399]
[1733226484955,5.40591808,94889.0,94888.0,0.93081399]
[1733226485610,5.40591808,94889.0,94888.0,0.97299099]
[1733226486511,5.40591808,94889.0,94888.0,1.67299099]
[1733226487598,5.39461704,94889.0,94888.0,1.67299099]
[1733226487821,5.38578897,94889.0,94888.0,1.67299099]
[1733226488038,5.36471197,94889.0,94888.0,1.67299099]
[1733226488887,5.35922769,94889.0,94888.0,1.67299099]
[1733226489768,5.33237292,94889.0,94888.0,1.67299099]
[1733226490202,5.33237292,94889.0,94888.0,1.71045414]
[1733226491911,5.26914192,94889.0,94888.0,1.71045414]
[1733226492125,5.22698792,94889.0,94888.0,1.71045414]
[1733226492601,5.21143897,94889.0,94888.0,1.74414075]
[1733226492814,4.81814902,94889.0,94888.0,1.74414075]
[1733226493689,4.79707202,94889.0,94888.0,1.73514075]
[1733226493936,4.75491802,94889.0,94888.0,1.72614075]
[1733226494146,4.71276402,94889.0,94888.0,1.74414075]
[1733226494357,4.71276402,94889.0,94888.0,1.73514075]
[1733226494775,4.64395469,94889.0,94888.0,1.73514075]
[1733226494982,4.60180069,94889.0,94888.0,1.73514075]
[1733226495404,4.03272369,94889.0,94888.0,2.05353584]
[1733226495621,4.03272369,94889.0,94888.0,1.73514075]
[1733226495837,3.92682869,94889.0,94888.0,1.74414075]
[1733226496274,3.90985885,94889.0,94888.0,1.74414075]
[1733226496723,3.84662785,94889.0,94888.0,1.74414075]
[1733226496951,3.79524572,94889.0,94888.0,1.74414075]
[1733226497154,3.77606861,94889.0,94888.0,1.74414075]
[1733226497800,3.64358266,94889.0,94888.0,1.74414075]
[1733226498013,3.56072092,94889.0,94888.0,1.74414075]
[1733226498454,3.56072092,94889.0,94888.0,1.71045414]
[1733226499134,3.47641292,94889.0,94888.0,1.67299099]
[1733226499345,3.45533592,94889.0,94888.0,1.67299099]
[1733226499984,3.45533592,94889.0,94888.0,1.54869099]
[1733226501561,3.45533592,94889.0,94888.0,1.86715885]
[1733226501804,3.45533592,94889.0,94888.0,1.54869099]
[1733226502259,3.45533592,94889.0,94888.0,1.86715885]
[1733226502891,3.45533592,94889.0,94888.0,1.54869099]
[1733226503728,3.45533592,94889.0,94888.0,1.86725896]
[1733226503931,3.45533592,94889.0,94888.0,1.54869099]
[1733226504801,3.45533592,94889.0,94888.0,1.86728149]
[1733226504991,3.45533592,94889.0,94888.0,1.54869099]
[1733226506252,3.45533592,94889.0,94888.0,1.86730323]
[1733226507120,3.45533592,94889.0,94888.0,1.54869099]
[1733226511391,3.32349849,94889.0,94888.0,1.54869099]
[1733226516468,3.31849849,94889.0,94888.0,1.54869099]
[1733226517592,3.27634449,94889.0,94888.0,1.54869099]
[1733226519567,3.27634449,94889.0,94888.0,2.06026632]
[1733226520653,3.27634449,94889.0,94888.0,2.06155863]
[1733226521337,3.17095949,94889.0,94888.0,1.54869099]
[1733226523133,3.14988249,94889.0,94888.0,1.54869099]
[1733226525769,3.14988249,94889.0,94888.0,2.06178445]
[1733226526667,3.14988249,94889.0,94888.0,0.84869099]
[1733226526896,3.14988249,94889.0,94888.0,1.36178445]
[1733226527321,3.14988249,94889.0,94888.0,0.84869099]
[1733226529553,3.14988249,94889.0,94888.0,1.54869099]
[1733226533869,3.19628249,94889.0,94888.0,1.54869099]
[1733226534754,3.27748249,94889.0,94888.0,1.17569099]
[1733226535430,3.27748249,94889.0,94888.0,0.47569099]
[1733226535646,3.27748249,94889.0,94888.0,0.34679099]
[1733226535885,3.27748249,94889.0,94888.0,0.35579099]
[1733226536095,3.27748249,94889.0,94888.0,0.51479099]
[1733226536308,3.27748249,94889.0,94888.0,0.47289553]
[1733226536512,3.27748249,94889.0,94888.0,0.48189553]
[1733226537144,3.27748249,94889.0,94888.0,0.50489553]
[1733226537764,3.27748249,94889.0,94888.0,0.48689553]
[1733226538207,3.27748249,94889.0,94888.0,0.50489553]
[1733226538433,3.27748249,94889.0,94888.0,0.49589553]
[1733226538638,3.27748249,94889.0,94888.0,0.50489553]
[1733226539899,3.2986774,94889.0,94888.0,0.50489553]
[1733226544622,3.2986774,94889.0,94888.0,0.61579553]
[1733226547550,3.27748249,94889.0,94888.0,0.61579553]
[1733226548480,3.27748249,94889.0,94888.0,0.59779553]
[1733226548930,3.27748249,94889.0,94888.0,0.61579553]
[1733226549169,3.27748249,94889.0,94888.0,0.60679553]
[1733226549382,3.27748249,94889.0,94888.0,0.61579553]
[1733226549627,3.27748249,94889.0,94888.0,0.60679553]
[1733226550576,3.27748249,94889.0,94888.0,0.61579553]
[1733226550804,3.23411286,94889.0,94888.0,0.61579553]
[1733226551033,3.23411286,94889.0,94888.0,0.60679553]
[1733226551511,3.23411286,94889.0,94888.0,0.61579553]
[1733226551739,3.23411286,94889.0,94888.0,0.60679553]
[1733226551953,3.17101286,94889.0,94888.0,0.59779553]
[1733226552191,3.17101286,94889.0,94888.0,0.61663458]
[1733226552422,3.12461286,94889.0,94888.0,0.61663458]
[1733226552649,3.06151286,94889.0,94888.0,0.61663458]
[1733226552863,3.06049481,94889.0,94888.0,0.61663458]
[1733226553323,3.01619481,94889.0,94888.0,0.61663458]
[1733226554243,3.01619481,94889.0,94888.0,1.03470866]
[1733226554481,2.93499481,94889.0,94888.0,0.61663458]
[1733226554906,2.93499481,94889.0,94888.0,0.60763458]
[1733226555121,2.93499481,94889.0,94888.0,0.59863458]
[1733226555371,2.93499481,94889.0,94888.0,0.61663458]
[1733226555591,2.93499481,94889.0,94888.0,1.31663458]
[1733226556076,2.93499481,94889.0,94888.0,1.30763458]
[1733226556298,2.93499481,94889.0,94888.0,1.34039342]
[1733226556518,2.91099481,94889.0,94888.0,1.54039342]
[1733226556733,2.91099481,94889.0,94888.0,1.61088103]
[1733226556956,2.91099481,94889.0,94888.0,1.54939342]
[1733226557588,2.91099481,94889.0,94888.0,1.54039342]
[1733226557989,2.91099481,94889.0,94888.0,1.54939342]
[1733226559227,2.90989481,94889.0,94888.0,1.54939342]
[1733226560398,2.85789481,94889.0,94888.0,1.52639342]
[1733226561124,2.83899481,94889.0,94888.0,1.52639342]
[1733226562019,2.83899481,94889.0,94888.0,1.54939342]
[1733226562494,2.83899481,94889.0,94888.0,1.34939342]
[1733226562748,2.83899481,94889.0,94888.0,1.54939342]
[1733226563459,2.77579481,94889.0,94888.0,1.54939342]
[1733226571164,2.76746528,94889.0,94888.0,1.54939342]
[1733226573144,2.76746528,94889.0,94888.0,1.54039342]
[1733226573360,2.76746528,94889.0,94888.0,2.05139123]
[1733226573581,2.76746528,94889.0,94888.0,2.06039123]
[1733226573807,2.76746528,94889.0,94888.0,1.54939342]
[1733226574029,2.20436528,94889.0,94888.0,1.54039342]
[1733226574292,2.20436528,94889.0,94888.0,1.54939342]
[1733226574738,2.20436528,94889.0,94888.0,1.54039342]
[1733226575169,2.20436528,94889.0,94888.0,1.53970439]
[1733226575394,2.14126528,94889.0,94888.0,1.54870439]
[1733226575860,2.14126528,94889.0,94888.0,1.53970439]
[1733226576088,2.14126528,94889.0,94888.0,1.54870439]
[1733226577293,2.14126528,94889.0,94888.0,1.58342943]
[1733226577294,2.05695728,94889.0,94888.0,1.58342943]
[1733226577512,2.03588028,94889.0,94888.0,1.62063957]
[1733226577957,2.03588028,94889.0,94888.0,1.61163957]
[1733226578634,2.01480328,94889.0,94888.0,1.62063957]
[1733226579352,2.01480328,94889.0,94888.0,0.92063957]
[1733226579519,2.01480328,94889.0,94888.0,1.61163957]
[1733226579962,2.01480328,94889.0,94888.0,1.62063957]
[1733226582134,2.01480328,94889.0,94888.0,1.58591453]
[1733226583512,2.01480328,94889.0,94888.0,1.54870439]
[1733226586686,2.01480328,94889.0,94888.0,1.70936783]
[1733226586687,1.73361686,94889.0,94888.0,1.70936783]
[1733226586905,0.75097577,94889.0,94888.0,1.70936783]
[1733226587095,0.75097577,94889.0,94888.0,1.73582907]
[1733226587096,0.63518792,94889.0,94888.0,1.73582907]
[1733226587355,0.63187033,94889.0,94888.0,1.73582907]
[1733226587576,0.63187033,94889.0,94888.0,1.72682907]
[1733226588008,0.51865429,94889.0,94888.0,1.72682907]
[1733226588224,0.51865429,94889.0,94888.0,1.73582907]
[1733226588438,0.51020603,94889.0,94888.0,1.73582907]
[1733226588661,0.48912903,94889.0,94888.0,2.23853454]
[1733226588883,0.39602557,94889.0,94888.0,1.72682907]
[1733226589618,0.39602557,94889.0,94888.0,1.73582907]
[1733226590065,0.31171757,94889.0,94888.0,1.73582907]
[1733226590310,0.29064057,94889.0,94888.0,1.73582907]
[1733226590520,0.29064057,94889.0,94888.0,2.24751465]
[1733226590731,0.22740957,94889.0,94888.0,1.73582907]
[1733226591647,0.18249607,94889.0,94888.0,1.73582907]
[1733226592523,0.09818807,94889.0,94888.0,1.73582907]
[1733226592753,1.8e-07,94889.0,94888.0,1.73582907]
[1733226595499,0.0017288,94915.0,94912.0,0.19]
[1733226595751,0.0017288,94915.0,94912.0,0.61422799]
[1733226595989,0.0017288,94915.0,94912.0,0.61236353]
[1733226596867,0.0017288,94915.0,94912.0,0.62136353]
[1733226597755,0.0017288,94915.0,94912.0,0.63036353]
[1733226597972,0.0017288,94915.0,94912.0,1.33036353]
[1733226599760,0.0801288,94913.0,94912.0,1.33036353]
[1733226600624,0.1275288,94913.0,94912.0,1.33036353]
[1733226601523,0.1275288,94913.0,94912.0,1.64963713]
[1733226602434,0.1275288,94913.0,94912.0,1.33036353]
[1733226602662,0.1275288,94913.0,94912.0,0.63036353]
[1733226606007,0.12593795,94913.0,94912.0,0.63036353]
[1733226610083,0.12593795,94913.0,94912.0,1.33036353]
[1733226613584,0.12593795,94913.0,94912.0,1.84280758]
[1733226613801,0.12593795,94913.0,94912.0,1.33036353]
[1733226616997,0.12593795,94913.0,94912.0,1.84287657]
[1733226617294,0.12593795,94913.0,94912.0,1.33036353]
[1733226620210,0.11746756,94913.0,94912.0,1.33036353]
[1733226624727,0.11746756,94913.0,94912.0,0.63036353]
[1733226626225,0.07006756,94913.0,94912.0,0.63036353]
[1733226627735,0.07006756,94913.0,94912.0,1.33036353]
[1733226630451,0.07006756,94913.0,94912.0,1.33208993]
[1733226630728,0.07093076,94913.0,94912.0,1.33208993]
[1733226634577,0.07093076,94913.0,94912.0,0.63208993]
[1733226637440,0.07093076,94913.0,94912.0,0.49818993]
[1733226637668,0.11623076,94913.0,94912.0,0.49818993]
[1733226638787,0.11623076,94913.0,94912.0,0.52118993]
[1733226640171,0.11523076,94913.0,94912.0,0.52118993]
[1733226642120,0.11523076,94913.0,94912.0,0.50318993]
[1733226642343,0.11385605,94913.0,94912.0,0.50318993]
[1733226642561,0.11385605,94913.0,94912.0,0.51218993]
[1733226642777,0.11385605,94913.0,94912.0,0.50318993]
[1733226643203,0.11385605,94913.0,94912.0,0.51218993]
[1733226643426,0.11385605,94913.0,94912.0,0.52118993]
[1733226643870,0.11385605,94913.0,94912.0,0.51218993]
[1733226644318,0.11385605,94913.0,94912.0,0.52118993]
[1733226644743,0.0017288,94915.0,94914.0,0.19]
[1733226644986,0.0017284,94939.0,94938.0,0.573663]
[1733226645207,0.0017284,94939.0,94938.0,0.79027329]
[1733226645414,0.0017284,94939.0,94938.0,0.82312618]
[1733226645632,0.0017284,94939.0,94938.0,0.79027329]
[1733226645873,0.0017284,94939.0,94938.0,0.82311374]
[1733226646102,0.00187709,94939.0,94938.0,0.82311374]
[1733226646322,0.00187709,94939.0,94938.0,0.83211374]
[1733226646536,0.00187709,94939.0,94938.0,0.82311374]
[1733226646950,0.00187709,94939.0,94938.0,0.83211374]
[1733226647831,0.00187709,94939.0,94938.0,0.84111374]
[1733226649656,0.00187709,94939.0,94938.0,0.73021374]
[1733226651185,0.00187709,94939.0,94938.0,1.24106138]
[1733226651401,0.00187709,94939.0,94938.0,0.73021374]
[1733226651829,0.00187709,94939.0,94938.0,1.24106138]
[1733226653138,0.00187709,94939.0,94938.0,0.73021374]
[1733226653811,0.08277709,94939.0,94938.0,0.73021374]
[1733226654947,0.00187709,94939.0,94938.0,0.73021374]
[1733226655168,0.00187709,94939.0,94938.0,0.76667444]
[1733226655382,0.00187709,94939.0,94938.0,0.87757444]
[1733226656030,0.00187709,94939.0,94938.0,0.84111374]
[1733226656869,0.00187709,94939.0,94938.0,0.80827329]
[1733226657085,0.00187709,94939.0,94938.0,0.84099788]
[1733226658376,0.0809,94960.0,94959.0,0.573617]
[1733226658612,0.08148757,94960.0,94959.0,0.67932299]
[1733226659733,0.08148757,94960.0,94959.0,0.46870599]
[1733226660417,0.08148757,94960.0,94959.0,0.48670599]
[1733226661079,0.08148757,94960.0,94959.0,0.9043085]
[1733226661318,0.08148757,94960.0,94959.0,0.48670599]
[1733226661546,0.12738757,94960.0,94959.0,0.12370599]
[1733226662036,0.13257717,94960.0,94959.0,0.12370599]
[1733226662781,0.13257717,94960.0,94959.0,0.11470599]
[1733226663015,0.12657717,94960.0,94959.0,0.11371259]
[1733226663253,0.0824,94958.0,94937.0,0.41760251]
[1733226663472,0.0483,94959.0,94946.0,0.19]
[1733226663473,0.08426266,94957.0,94946.0,0.19]
[1733226663681,0.08890205,94957.0,94950.0,0.19]
[1733226663883,0.08890205,94957.0,94950.0,0.19062794]
[1733226664335,0.210623,94956.0,94950.0,0.00062794]
[1733226664556,0.08326266,94955.0,94950.0,0.00062794]
[1733226664778,0.08790414,94955.0,94950.0,0.00062794]
[1733226664981,0.0814,94953.0,94951.0,0.0124522]
[1733226665199,0.20186266,94952.0,94951.0,0.0124522]
[1733226665413,0.20648742,94952.0,94951.0,0.0124522]
[1733226666358,0.22807672,94952.0,94951.0,0.0124522]
[1733226666505,0.22907672,94952.0,94951.0,0.0214522]
[1733226666737,0.28415403,94952.0,94951.0,0.0214522]
[1733226667602,0.02721406,94952.0,94951.0,0.0214522]
[1733226667827,0.00562476,94952.0,94951.0,0.2344522]
[1733226668047,0.001,94952.0,94951.0,0.2344522]
[1733226668273,0.001,94952.0,94951.0,0.2434522]
[1733226668489,0.00286266,94952.0,94951.0,0.2434522]
[1733226668927,0.001,94952.0,94951.0,0.2434522]
[1733226676822,0.001,94952.0,94951.0,0.2451786]
[1733226680461,0.00286266,94952.0,94951.0,0.2451786]
[1733226680890,0.00286266,94952.0,94951.0,0.66331795]
[1733226681102,0.00286266,94952.0,94951.0,0.2451786]
[1733226681547,0.00286266,94952.0,94951.0,0.47335377]
[1733226681779,0.00286266,94952.0,94951.0,0.0551786]
[1733226681780,0.08416266,94952.0,94951.0,0.0551786]
[1733226682684,0.08416266,94952.0,94951.0,0.0321786]
[1733226682898,0.08416266,94952.0,94951.0,0.0551786]
[1733226683128,0.1097977,94952.0,94951.0,0.0321786]
[1733226683345,0.1097977,94952.0,94943.0,0.0009879]
[1733226683346,0.078,94948.0,94943.0,0.0009879]
[1733226683560,0.00186266,94947.0,94943.0,0.0009879]
[1733226683768,0.00652106,94947.0,94943.0,0.0009879]
[1733226683981,0.00186266,94947.0,94944.0,0.10471259]
[1733226684412,0.0046584,94946.0,94944.0,0.10471259]
[1733226684625,0.00186266,94945.0,94944.0,0.10471259]
[1733226684856,0.00186266,94945.0,94944.0,0.12771259]
[1733226685062,0.00652305,94945.0,94944.0,0.12771259]
[1733226685770,0.00127313,94945.0,94944.0,0.13671259]
[1733226685980,0.00304853,94945.0,94944.0,0.12771259]
[1733226686192,0.05604349,94948.0,94944.0,0.12771259]
[1733226686404,0.05604349,94948.0,94945.0,0.023]
[1733226686625,0.00419236,94947.0,94946.0,0.12771259]
[1733226689225,0.00419236,94947.0,94946.0,0.13671259]
[1733226689226,0.00519236,94947.0,94946.0,0.13671259]
[1733226689455,0.00619236,94947.0,94946.0,0.13871259]
[1733226690177,0.00619236,94947.0,94946.0,0.56181259]
[1733226690646,0.002,94947.0,94946.0,0.56181259]
[1733226691107,0.002,94947.0,94946.0,0.59464595]
[1733226691859,0.002,94947.0,94946.0,0.59264595]
[1733226691860,0.001,94947.0,94946.0,0.59264595]
[1733226692067,0.002,94947.0,94946.0,0.60164595]
[1733226692307,0.001,94947.0,94946.0,0.59264595]
[1733226692516,0.001,94947.0,94946.0,0.91102073]
[1733226692975,0.2,94967.0,94959.0,0.423617]
[1733226693216,0.2,94967.0,94959.0,0.52931699]
[1733226693940,0.02236976,94960.0,94959.0,0.52931699]
[1733226694658,0.02236976,94960.0,94959.0,0.53831699]
[1733226696643,0.02236976,94960.0,94959.0,0.54731699]
[1733226697152,0.02236976,94960.0,94959.0,0.58015083]
[1733226697388,0.02236976,94960.0,94959.0,0.89852561]
[1733226697622,0.02236976,94960.0,94959.0,0.54731699]
[1733226698792,0.00145117,94960.0,94959.0,1.13669177]
[1733226699025,0.00145117,94960.0,94959.0,0.85114396]
[1733226699496,0.00145117,94960.0,94959.0,0.83314396]
[1733226699731,0.000863,94981.0,94963.0,0.34]
[1733226699732,0.02092369,94979.0,94963.0,0.34]
[1733226699960,0.02092369,94979.0,94963.0,0.47753956]
[1733226700661,0.000863,94981.0,94963.0,0.47753956]
[1733226701781,0.000863,94981.0,94963.0,0.50053956]
[1733226702461,0.000863,94981.0,94963.0,1.20053956]
[1733226702676,0.000863,94981.0,94963.0,1.20953956]
[1733226702893,0.0018633,94964.0,94963.0,1.21853956]
[1733226703138,0.0018633,94964.0,94963.0,1.20953956]
[1733226703592,0.0028633,94964.0,94963.0,1.21853956]
[1733226703835,0.000863,94981.0,94968.0,0.550597]
[1733226704048,0.000863,94981.0,94968.0,0.68813656]
[1733226705772,0.000863,94981.0,94968.0,0.71113656]
[1733226706252,0.00107669,94969.0,94968.0,0.72013656]
[1733226706471,0.00107669,94969.0,94968.0,0.72913656]
[1733226706709,0.00107669,94969.0,94968.0,0.69630959]
[1733226708071,0.00107669,94969.0,94968.0,0.46271259]
[1733226708287,0.00107669,94969.0,94968.0,0.31271259]
[1733226708524,0.00107669,94969.0,94968.0,0.52330959]
[1733226708958,0.00072501,94972.0,94970.0,0.19]
[1733226709210,0.00046268,94972.0,94971.0,0.10570179]
[1733226709468,0.00046268,94972.0,94971.0,0.44570179]
[1733226709707,0.00046268,94972.0,94971.0,0.46870179]
[1733226711053,0.00046268,94972.0,94971.0,0.47770179]
[1733226712667,0.00046268,94972.0,94971.0,0.48670179]
[1733226719666,0.00046268,94972.0,94971.0,0.61720179]
[1733226720427,0.00046268,94972.0,94971.0,0.92658669]
[1733226720657,0.00046268,94972.0,94971.0,0.95932263]
[1733226720895,0.00046268,94972.0,94971.0,0.51043773]
[1733226721114,0.00146268,94972.0,94971.0,0.51943773]
[1733226721323,0.00146268,94972.0,94971.0,0.48670179]
[1733226721959,0.00146268,94972.0,94971.0,0.47770179]
[1733226722179,0.00046268,94972.0,94971.0,0.46870179]
[1733226722392,0.00046268,94972.0,94971.0,0.47770179]
[1733226722891,0.00046268,94972.0,94971.0,0.46870179]
[1733226723105,0.00046268,94972.0,94971.0,0.47770179]
[1733226723539,0.00046268,94972.0,94971.0,0.48670179]
[1733226723853,0.00046268,94972.0,94971.0,0.46870179]
[1733226724058,0.00046268,94972.0,94971.0,0.48670179]
[1733226724727,0.00046268,94972.0,94971.0,0.90457974]
[1733226725389,0.00046268,94972.0,94971.0,0.70557974]
[1733226725613,0.00046268,94972.0,94971.0,0.90457974]
[1733226727182,0.00046268,94972.0,94971.0,0.90630594]
[1733226727826,0.0791,94978.0,94972.0,0.173]
[1733226727827,0.06956268,94978.0,94972.0,0.173]
[1733226728059,0.06956268,94978.0,94974.0,0.173]
[1733226728285,0.06956268,94978.0,94971.0,0.2107154]
[1733226728286,0.06956268,94978.0,94976.0,0.173]
[1733226728493,0.06956268,94978.0,94977.0,0.10471259]
[1733226728727,0.06956268,94978.0,94977.0,0.12771259]
[1733226729928,0.06956268,94978.0,94977.0,0.13671259]
[1733226730931,0.07250204,94978.0,94977.0,0.13671259]
[1733226731799,0.07250204,94978.0,94977.0,0.14571259]
[1733226732671,0.07250204,94978.0,94977.0,0.041]
[1733226733318,0.27250204,94978.0,94977.0,0.041]
[1733226733970,0.27250204,94978.0,94977.0,0.032]
[1733226734181,0.27250204,94978.0,94971.0,0.0027154]
[1733226734182,0.2,94976.0,94972.0,0.023]
[1733226734405,0.2,94976.0,94974.0,0.023]
[1733226734618,0.210577,94977.0,94975.0,0.10471259]
[1733226734831,0.2,94976.0,94975.0,0.12771259]
[1733226735057,0.2,94976.0,94975.0,0.10471259]
[1733226735516,0.20292265,94976.0,94975.0,0.12771259]
[1733226736183,0.20292265,94976.0,94975.0,0.13571259]
[1733226736436,0.00292265,94976.0,94975.0,0.13571259]
[1733226736650,0.20292265,94976.0,94975.0,0.55403227]
[1733226736868,0.20292265,94976.0,94975.0,0.13571259]
[1733226736869,0.00292265,94976.0,94975.0,0.13571259]
[1733226737076,0.00292265,94976.0,94975.0,0.55403227]
[1733226737298,0.00292265,94976.0,94975.0,0.56303227]
[1733226737511,0.2,94976.0,94975.0,0.14471259]
[1733226737741,0.25143339,94976.0,94975.0,0.00803811]
[1733226737986,0.05143339,94976.0,94975.0,0.00803811]
[1733226738218,0.20304126,94976.0,94975.0,0.00803811]
[1733226738897,0.20390436,94976.0,94975.0,0.00803811]
[1733226741792,0.00390436,94976.0,94975.0,0.00803811]
[1733226742238,0.0033348,94976.0,94975.0,0.00803811]
[1733226744343,0.21356632,94976.0,94975.0,0.00803811]
[1733226744573,0.210579,94976.0,94975.0,0.00803811]
[1733226745036,0.23126217,94976.0,94975.0,0.00803811]
[1733226745497,0.02068317,94976.0,94975.0,0.00803811]
[1733226745715,0.02068317,94976.0,94975.0,0.1127507]
[1733226746178,0.02068317,94976.0,94975.0,0.53191612]
[1733226746433,0.02068317,94976.0,94975.0,0.1127507]
[1733226746696,0.23126217,94976.0,94975.0,0.53184508]
[1733226747381,0.23126217,94976.0,94975.0,0.1127507]
[1733226748510,0.23126217,94976.0,94975.0,0.53186746]
[1733226749196,0.23126217,94976.0,94975.0,0.53188889]
[1733226749639,0.23126217,94976.0,94975.0,0.1127507]
[1733226749857,0.210579,94976.0,94975.0,0.531915]
[1733226750074,0.210579,94976.0,94975.0,0.1127507]
[1733226750744,0.2114421,94976.0,94975.0,0.1127507]
[1733226751708,0.0008631,94976.0,94975.0,0.1127507]
[1733226753417,0.00060118,94976.0,94975.0,0.1127507]
[1733226754395,0.21118018,94976.0,94975.0,0.1127507]
[1733226754820,0.00060118,94976.0,94975.0,0.1127507]
[1733226755336,0.21118018,94976.0,94975.0,0.1127507]
[1733226756292,0.23195157,94976.0,94975.0,0.1127507]
[1733226756718,0.23189742,94976.0,94975.0,0.1127507]
[1733226758285,0.23189742,94976.0,94975.0,0.1357507]
[1733226759676,0.23189742,94976.0,94975.0,0.42741654]
[1733226760110,0.23189742,94976.0,94975.0,0.00803811]
[1733226760329,0.21112603,94976.0,94975.0,0.00803811]
[1733226761421,0.00054703,94976.0,94975.0,0.00803811]
[1733226761635,0.21112603,94976.0,94975.0,0.00803811]
[1733226762144,0.21112603,94976.0,94975.0,0.1127507]
[1733226763255,0.21112603,94976.0,94975.0,0.1144769]
[1733226766116,0.23219587,94976.0,94975.0,0.1144769]
[1733226770053,0.21112603,94976.0,94975.0,0.1144769]
[1733226775803,0.2323237,94976.0,94975.0,0.1144769]
[1733226777854,0.2323237,94976.0,94975.0,0.00976431]
[1733226780065,0.21112603,94976.0,94975.0,0.00976431]
[1733226784120,0.00054703,94976.0,94975.0,0.1144769]
[1733226784556,0.00054703,94976.0,94975.0,0.1374769]
[1733226785248,0.00054703,94976.0,94975.0,0.12943879]
[1733226786325,0.00154703,94976.0,94975.0,0.13643879]
[1733226786536,0.00154703,94976.0,94975.0,0.14543879]
[1733226786750,0.00054703,94976.0,94975.0,0.13843879]
[1733226786961,0.02149378,94976.0,94975.0,0.13843879]
[1733226787167,0.02249378,94976.0,94975.0,0.14643879]
[1733226787811,0.23307278,94976.0,94975.0,0.14643879]
[1733226788241,0.02249378,94976.0,94975.0,0.14643879]
[1733226789339,0.08591346,94976.0,94975.0,0.12343879]
[1733226789761,0.02249378,94976.0,94975.0,0.12343879]
[1733226790205,0.00154703,94976.0,94975.0,0.12343879]
[1733226795665,0.0230997,94976.0,94975.0,0.12343879]
[1733226796178,0.0230997,94976.0,94975.0,0.12541779]
[1733226797310,0.0230997,94976.0,94975.0,0.0207052]
[1733226798403,0.08829157,94976.0,94975.0,0.0207052]
[1733226798826,0.0667389,94976.0,94975.0,0.0207052]
[1733226799707,0.0667389,94976.0,94975.0,0.44073331]
[1733226800006,0.0667389,94976.0,94975.0,0.0207052]
[1733226800102,0.200375,94976.0,94975.0,0.44073331]
[1733226800385,0.200375,94976.0,94975.0,0.0207052]
[1733226800841,0.275975,94976.0,94975.0,0.0207052]
[1733226801277,0.35053001,94976.0,94975.0,0.0117052]
[1733226801709,0.35053001,94976.0,94975.0,0.0207052]
[1733226801930,0.35053001,94976.0,94975.0,0.0127052]
[1733226801931,0.34953001,94976.0,94975.0,0.0127052]
[1733226802793,0.35344474,94976.0,94975.0,0.0197052]
[1733226803010,0.35344474,94976.0,94975.0,0.0107052]
[1733226803226,0.35244474,94976.0,94975.0,0.0127052]
[1733226803449,0.35244474,94976.0,94975.0,0.0067052]
[1733226803932,0.35244474,94976.0,94975.0,0.0137052]
[1733226804400,0.27788973,94976.0,94975.0,0.0137052]
[1733226805266,0.2990572,94976.0,94975.0,0.0137052]
[1733226809732,0.27788973,94976.0,94975.0,0.0137052]
[1733226811026,0.20228973,94976.0,94975.0,0.0137052]
[1733226815473,0.222995,94976.0,94975.0,0.0137052]
[1733226816756,0.28758201,94976.0,94975.0,0.0137052]
[1733226817393,0.222995,94976.0,94975.0,0.0137052]
[1733226818680,0.222995,94976.0,94975.0,0.0107052]
[1733226818892,0.222995,94976.0,94975.0,0.0067052]
[1733226819350,0.222995,94976.0,94975.0,0.0127052]
[1733226819556,0.222995,94976.0,94975.0,0.0037052]
[1733226819773,0.222995,94976.0,94975.0,0.0067052]
[1733226819995,0.222995,94976.0,94975.0,0.0147052]
[1733226820212,0.20228973,94976.0,94975.0,0.0147052]
[1733226823223,0.26480621,94976.0,94975.0,0.0147052]
[1733226823671,0.34490621,94976.0,94975.0,0.0147052]
[1733226826086,0.36586989,94976.0,94975.0,0.0147052]
[1733226828260,0.30335341,94976.0,94975.0,0.0147052]
[1733226829828,0.22325341,94976.0,94975.0,0.0147052]
[1733226830051,0.20228973,94976.0,94975.0,0.0147052]
[1733226832597,0.01346176,94976.0,94975.0,0.0147052]
[1733226832813,0.20228973,94976.0,94975.0,0.0147052]
[1733226833296,0.00346176,94976.0,94975.0,0.0147052]
[1733226833734,0.00346176,94976.0,94975.0,0.0968052]
[1733226833952,0.00054703,94976.0,94975.0,0.19851779]
[1733226834174,0.00054703,94976.0,94975.0,0.19051779]
[1733226834438,0.00054703,94976.0,94975.0,0.19451779]
[1733226834851,0.00379147,94976.0,94975.0,0.19051779]
[1733226835358,0.02507293,94976.0,94975.0,0.19051779]
[1733226835577,0.02507293,94976.0,94975.0,0.20751779]
[1733226836006,0.02507293,94976.0,94975.0,0.19851779]
[1733226836222,0.02507293,94976.0,94975.0,0.20751779]
[1733226836884,0.02507293,94976.0,94975.0,0.19951779]
[1733226837094,0.02507293,94976.0,94975.0,0.20651779]
[1733226839780,0.00379147,94976.0,94975.0,0.20651779]
[1733226840497,0.00054703,94976.0,94975.0,0.20651779]
[1733226846000,0.00054703,94976.0,94975.0,0.19751779]
[1733226846218,0.00054703,94976.0,94975.0,0.19051779]
[1733226846453,0.02115995,94976.0,94975.0,0.20751779]
[1733226846692,0.02115995,94976.0,94975.0,0.19851779]
[1733226847119,0.00054703,94976.0,94975.0,0.62028982]
[1733226847324,0.00054703,94976.0,94975.0,0.62928982]
[1733226847956,0.00054703,94976.0,94975.0,0.64411034]
[1733226848166,0.00054703,94976.0,94975.0,0.65311034]
[1733226849434,0.00054703,94976.0,94975.0,0.66211034]
[1733226849642,0.00054703,94976.0,94975.0,0.64411034]